fUST/lending_fUST_20260109
["ID","MTS","AMOUNT","RATE_DAILY","PERIOD"]
[401039242,1767891074350,-347.0,0.00030507,7]
[401039243,1767891074359,-152.0,0.00030507,7]
[401039244,1767891074369,-336.0,0.00030507,7]
[401039245,1767891074379,-347.0,0.00030507,7]
[401039246,1767891074388,-152.0,0.00030507,7]
[401039247,1767891074398,-336.0,0.00030507,7]
[401039248,1767891074408,-284.0,0.00030507,7]
[401039249,1767891074419,-347.0,0.00030507,7]
[401039250,1767891074429,-336.0,0.00030507,7]
[401039251,1767891074439,-336.0,0.00030507,7]
[401039252,1767891074448,-152.0,0.00030507,7]
[401039253,1767891074460,-166.0,0.00030507,7]
[401039254,1767891074470,-336.0,0.00030507,7]
[401039255,1767891074481,-347.0,0.00030507,7]
[401039256,1767891074490,-166.0,0.00030507,7]
[401039257,1767891074500,-336.0,0.00030507,7]
[401039258,1767891074510,-347.0,0.00030507,7]
[401039259,1767891074520,-172.0,0.00030507,7]
[401039260,1767891074530,-336.0,0.00030507,7]
[401039261,1767891074542,-151.0,0.00030507,7]
[401039262,1767891074551,-166.0,0.00030507,7]
[401039263,1767891074561,-347.0,0.00030507,7]
[401039264,1767891074570,-336.0,0.00030507,7]
[401039265,1767891074579,-151.0,0.00030507,7]
[401039266,1767891074588,-347.0,0.00030507,7]
[401039267,1767891074598,-336.0,0.00030507,7]
[401039268,1767891074606,-151.0,0.00030507,7]
[401039269,1767891074616,-347.0,0.00030507,7]
[401039270,1767891074625,-151.0,0.00030507,7]
[401039271,1767891074636,-336.0,0.00030507,7]
[401039272,1767891074645,-347.0,0.00030507,7]
[401039273,1767891074654,-336.0,0.00030507,7]
[401039274,1767891074663,-151.0,0.00030507,7]
[401039275,1767891074672,-347.0,0.00030507,7]
[401039276,1767891074681,-336.0,0.00030507,7]
[401039277,1767891074691,-151.0,0.00030507,7]
[401039278,1767891074701,-347.0,0.00030507,7]
[401039279,1767891074711,-336.0,0.00030507,7]
[401039280,1767891074721,-151.0,0.00030507,7]
[401039281,1767891074730,-347.0,0.00030507,7]
[401039282,1767891074740,-336.0,0.00030507,7]
[401039283,1767891074750,-151.0,0.00030507,7]
[401039284,1767891074760,-347.0,0.00030507,7]
[401039285,1767891074769,-336.0,0.00030507,7]
[401039286,1767891074779,-151.0,0.00030507,7]
[401039287,1767891074789,-347.0,0.00030507,7]
[401039288,1767891074799,-336.0,0.00030507,7]
[401039289,1767891074808,-151.0,0.00030507,7]
[401039290,1767891074818,-347.0,0.00030507,7]
[401039291,1767891074827,-336.0,0.00030507,7]
[401039292,1767891074837,-151.0,0.00030507,7]
[401039293,1767891074847,-347.0,0.00030507,7]
[401039294,1767891074857,-336.0,0.00030507,7]
[401039295,1767891074866,-347.0,0.00030507,7]
[401039296,1767891074877,-151.0,0.00030507,7]
[401039297,1767891074887,-439.14173406,0.00030507,7]
[401039298,1767891074896,-347.0,0.00030507,7]
[401039299,1767891074906,-151.0,0.00030507,7]
[401039300,1767891074916,-151.0,0.00030507,7]
[401039301,1767891074926,-347.0,0.00030507,7]
[401039302,1767891074936,-347.0,0.00030507,7]
[401039303,1767891074946,-347.0,0.00030507,7]
[401039304,1767891074955,-151.0,0.00030507,7]
[401039305,1767891074964,-347.0,0.00030507,7]
[401039306,1767891074974,-153.05483042,0.00030507,7]
[401039307,1767891074984,-347.0,0.00030507,7]
[401039308,1767891074993,-347.0,0.00030507,7]
[401039309,1767891075003,-347.0,0.00030507,7]
[401039310,1767891075013,-347.0,0.00030507,7]
[401039311,1767891075022,-347.0,0.00030507,7]
[401039312,1767891075032,-347.0,0.00030507,7]
[401039313,1767891075042,-376.65305407,0.00030507,7]
[401039314,1767891075052,-2466.0,0.00030519,2]
[401039315,1767891075061,-753.5293602,0.00030548,30]
[401039316,1767891075070,-4895.1460992,0.00030565,2]
[401039317,1767891075080,-3673.62214848,0.00030584,2]
[401039318,1767891075089,-916.0706166,0.00030588,25]
[401039319,1767891075098,-1344.71,0.000306,2]
[401039320,1767891075109,-1344.71,0.000306,2]
[401039321,1767891075118,-168.06,0.000306,2]
[401039322,1767891075128,-158.87,0.000306,2]
[401039323,1767891075137,-406.042111,0.000306,10]
[401039324,1767891075146,-160.0,0.0003065,3]
[401039325,1767891075155,-1230.77,0.00030684,5]
[401039326,1767891075164,-500.0,0.00030684,5]
[401039327,1767891075173,-584.62852237,0.00030684,2]
[401039328,1767891075183,-318.70734478,0.00030684,5]
[401039329,1767891075293,-500.0,0.00030684,5]
[401039330,1767891075314,-500.0,0.00030684,5]
[401039331,1767891075324,-240.42375719,0.00030684,5]
[401039332,1767891075334,-563.95,0.00030684,5]
[401039333,1767891075343,-500.0,0.00030684,5]
[401039334,1767891075353,-500.0,0.00030684,5]
[401039335,1767891075363,-500.0,0.00030684,5]
[401039336,1767891075372,-500.0,0.00030684,5]
[401039337,1767891075382,-517.63,0.00030684,5]
[401039338,1767891075391,-2443.5,0.00030684,5]
[401039339,1767891075401,-500.0,0.00030684,5]
[401039340,1767891075410,-500.0,0.00030684,5]
[401039341,1767891075420,-617.23,0.00030684,5]
[401039342,1767891075430,-500.0,0.00030684,5]
[401039343,1767891075439,-500.0,0.00030684,5]
[401039344,1767891075450,-557.97,0.00030684,5]
[401039345,1767891075459,-1606.22,0.00030684,5]
[401039346,1767891075468,-500.0,0.00030684,5]
[401039347,1767891075477,-500.0,0.00030684,5]
[401039348,1767891075487,-1899.8,0.00030684,5]
[401039349,1767891075498,-500.0,0.00030684,2]
[401039350,1767891075508,-692.57,0.00030684,5]
[401039351,1767891075518,-510.49,0.00030684,5]
[401039352,1767891075528,-500.65,0.00030684,5]
[401039353,1767891075538,-9194.49,0.00030684,3]
[401039354,1767891075548,-1384.74,0.00030684,5]
[401039355,1767891075558,-4093.0,0.00030684,5]
[401039356,1767891075567,-2464.53,0.00030684,5]
[401039357,1767891075577,-8762.91,0.00030684,5]
[401039358,1767891075587,-2631.52,0.00030684,5]
[401039359,1767891075596,-500.0,0.00030684,5]
[401039360,1767891075606,-500.0,0.00030684,5]
[401039361,1767891075615,-500.0,0.00030684,5]
[401039362,1767891075624,-500.0,0.00030684,5]
[401039363,1767891075634,-600.7,0.00030684,5]
[401039364,1767891075646,-500.0,0.00030684,5]
[401039365,1767891075656,-500.0,0.00030684,5]
[401039366,1767891075665,-151.0,0.00030684,31]
[401039367,1767891075674,-215.13425,0.00030684,31]
[401039368,1767891075683,-151.0,0.00030684,31]
[401039369,1767891075694,-215.13425,0.00030684,31]
[401039370,1767891075710,-752.31822059,0.00030685,5]
[401039371,1767891075720,-751.66658596,0.00030685,5]
[401039372,1767891075730,-1344.71,0.000307,2]
[401039373,1767891075740,-152.54,0.000307,2]
[401039374,1767891075749,-256.27,0.000307,2]
[401039375,1767891075758,-151.0,0.000307,31]
[401039376,1767891075768,-151.0,0.000307,31]
[401039377,1767891075777,-1439.873322,0.000307,31]
[401039378,1767891075787,-151.0,0.000307,31]
[401039379,1767891075796,-1439.873322,0.000307,31]
[401039380,1767891075806,-35714.28,0.000307,6]
[401039381,1767891075815,-1439.873322,0.000307,31]
[401039382,1767891075824,-1439.873322,0.000307,31]
[401039383,1767891075834,-262.112916,0.000307,31]
[401039384,1767891075843,-151.0,0.000307,31]
[401039385,1767891075852,-757.340513,0.000307,31]
[401039386,1767891075862,-757.340513,0.000307,31]
[401039387,1767891075872,-757.340513,0.000307,31]
[401039388,1767891075882,-757.340513,0.000307,31]
[401039389,1767891075891,-1768.0,0.00030721,2]
[401039390,1767891075900,-38000.0,0.00030731,10]
[401039391,1767891075909,-38000.0,0.0003074,10]
[401039392,1767891075919,-151.0,0.0003074,31]
[401039393,1767891075927,-177.622623,0.0003074,7]
[401039394,1767891075942,-151.0,0.0003074,31]
[401039395,1767891075953,-151.0,0.0003074,31]
[401039396,1767891075964,-151.0,0.0003074,31]
[401039397,1767891075974,-465.027669,0.0003074,31]
[401039398,1767891075986,-465.027669,0.0003074,31]
[401039399,1767891075995,-465.027669,0.0003074,31]
[401039400,1767891076006,-465.027669,0.0003074,31]
[401039401,1767891076017,-151.0,0.0003074,31]
[401039402,1767891076027,-151.0,0.0003074,31]
[401039403,1767891076037,-151.0,0.0003074,31]
[401039404,1767891076046,-625.10994,0.0003074,31]
[401039405,1767891076056,-151.0,0.0003074,31]
[401039406,1767891076068,-625.10994,0.0003074,31]
[401039407,1767891076077,-625.10994,0.0003074,31]
[401039408,1767891076087,-625.10994,0.0003074,31]
[401039409,1767891076097,-1200.0,0.00030749,7]
[401039410,1767891076106,-1768.0,0.00030751,7]
[401039411,1767891076116,-784.10783729,0.00030773,10]
[401039412,1767891076125,-1344.71,0.000308,2]
[401039413,1767891076134,-1344.71,0.000308,2]
[401039414,1767891076146,-435.2,0.00030807,4]
[401039415,1767891076156,-509.0,0.0003081,14]
[401039416,1767891076166,-1200.0,0.00030823,7]
[401039417,1767891076176,-37307.29773133,0.00030823,2]
[401039418,1767891076185,-3015.0,0.00030852,2]
[401039419,1767891076194,-151.0,0.00030867,31]
[401039420,1767891076203,-10000.0,0.0003087,7]
[401039421,1767891076213,-1200.0,0.00030875,7]
[401039422,1767891076222,-163.4434678,0.00030877,30]
[401039423,1767891076232,-1344.71,0.000309,2]
[401039424,1767891076241,-1344.71,0.000309,2]
[401039425,1767891076252,-158.87,0.000309,2]
[401039426,1767891076261,-20550.55,0.000309,2]
[401039427,1767891076271,-2000.0,0.00030947,7]
[401039428,1767891076280,-1230.77,0.00030958,5]
[401039429,1767891076290,-601.4235728,0.00030958,5]
[401039430,1767891076300,-500.0,0.00030958,5]
[401039431,1767891076309,-500.0,0.00030958,5]
[401039432,1767891076319,-563.95,0.00030958,5]
[401039433,1767891076328,-500.0,0.00030958,5]
[401039434,1767891076338,-500.0,0.00030958,5]
[401039435,1767891076347,-500.0,0.00030958,5]
[401039436,1767891076357,-500.0,0.00030958,5]
[401039437,1767891076366,-517.63,0.00030958,5]
[401039438,1767891076376,-2443.5,0.00030958,5]
[401039439,1767891076386,-500.0,0.00030958,5]
[401039440,1767891076397,-500.0,0.00030958,5]
[401039441,1767891076406,-617.23,0.00030958,5]
[401039442,1767891076417,-500.0,0.00030958,5]
[401039443,1767891076427,-305.15224942,0.00030958,5]
[401039444,1767891076437,-557.97,0.00030958,5]
[401039445,1767891076446,-1606.22,0.00030958,5]
[401039446,1767891076455,-500.0,0.00030958,5]
[401039447,1767891076465,-500.0,0.00030958,5]
[401039448,1767891076474,-1899.8,0.00030958,5]
[401039449,1767891076484,-500.0,0.00030958,2]
[401039450,1767891076493,-309.68,0.00030958,30]
[401039451,1767891076505,-692.57,0.00030958,5]
[401039452,1767891076515,-510.49,0.00030958,5]
[401039453,1767891076525,-500.65,0.00030958,5]
[401039454,1767891076534,-9194.49,0.00030958,3]
[401039455,1767891076545,-1384.74,0.00030958,5]
[401039456,1767891076554,-4093.0,0.00030958,5]
[401039457,1767891076563,-2464.53,0.00030958,5]
[401039458,1767891076574,-8762.91,0.00030958,5]
[401039459,1767891076583,-2631.52,0.00030958,5]
[401039460,1767891076593,-500.0,0.00030958,5]
[401039461,1767891076603,-500.0,0.00030958,5]
[401039462,1767891076612,-500.0,0.00030958,5]
[401039463,1767891076622,-600.7,0.00030958,5]
[401039464,1767891076632,-500.0,0.00030958,5]
[401039465,1767891076644,-500.0,0.00030958,5]
[401039466,1767891076653,-500.0,0.00030967,7]
[401039467,1767891076662,-1200.0,0.00030977,7]
[401039468,1767891076672,-934.1621727,0.00031,120]
[401039469,1767891076681,-1344.71,0.00031,2]
[401039470,1767891076690,-168.06,0.00031,2]
[401039471,1767891076699,-152.54,0.00031,2]
[401039472,1767891076708,-1041.66666667,0.00031,10]
[401039473,1767891076717,-1770.0,0.00031033,7]
[401039474,1767891076727,-509.0,0.00031068,14]
[401039475,1767891076738,-5000.0,0.0003108,2]
[401039476,1767891076747,-151.0,0.0003108,31]
[401039477,1767891076756,-151.0,0.0003108,31]
[401039478,1767891076765,-1344.71,0.000311,2]
[401039479,1767891076775,-1344.71,0.000311,2]
[401039480,1767891076784,-158.87,0.000311,2]
[401039481,1767891076795,-587.58501506,0.0003111,7]
[401039482,1767891076806,-160.0,0.00031125,8]
[401039483,1767891076817,-1768.0,0.00031132,2]
[401039484,1767891076826,-1200.0,0.00031199,7]
[401039485,1767891076837,-1344.71,0.000312,2]
[401039486,1767891076848,-1344.71,0.000312,2]
[401039487,1767891076858,-152.54,0.000312,2]
[401039488,1767891076867,-500.0,0.00031216,7]
[401039489,1767891076878,-2466.0,0.00031228,2]
[401039490,1767891076889,-1230.77,0.00031232,5]
[401039491,1767891076900,-500.0,0.00031232,5]
[401039492,1767891076911,-500.0,0.00031232,5]
[401039493,1767891076922,-563.95,0.00031232,5]
[401039494,1767891076933,-487.41045214,0.00031232,5]
[401039495,1767891076944,-500.0,0.00031232,5]
[401039496,1767891076954,-151.0,0.00031232,31]
[401039497,1767891076963,-151.0,0.00031232,31]
[401039498,1767891076973,-330.28,0.00031232,31]
[401039499,1767891076983,-330.28,0.00031232,31]
[401039500,1767891076992,-330.28,0.00031232,31]
[401039501,1767891077001,-330.28,0.00031232,31]
[401039502,1767891077011,-160.14587,0.00031232,31]
[401039503,1767891077020,-152.589858,0.00031232,31]
[401039504,1767891077030,-500.0,0.00031232,5]
[401039505,1767891077041,-500.0,0.00031232,5]
[401039506,1767891077050,-517.63,0.00031232,5]
[401039507,1767891077059,-2443.5,0.00031232,5]
[401039508,1767891077068,-500.0,0.00031232,5]
[401039509,1767891077079,-500.0,0.00031232,5]
[401039510,1767891077089,-617.23,0.00031232,5]
[401039511,1767891077098,-487.96924619,0.00031232,5]
[401039512,1767891077109,-557.97,0.00031232,5]
[401039513,1767891077118,-1606.22,0.00031232,5]
[401039514,1767891077129,-500.0,0.00031232,5]
[401039515,1767891077140,-500.0,0.00031232,5]
[401039516,1767891077152,-1899.8,0.00031232,5]
[401039517,1767891077162,-500.0,0.00031232,2]
[401039518,1767891077172,-692.57,0.00031232,5]
[401039519,1767891077182,-510.49,0.00031232,5]
[401039520,1767891077191,-500.65,0.00031232,5]
[401039521,1767891077200,-9194.49,0.00031232,3]
[401039522,1767891077210,-1384.74,0.00031232,5]
[401039523,1767891077219,-4093.0,0.00031232,5]
[401039524,1767891077229,-2464.53,0.00031232,5]
[401039525,1767891077238,-8762.91,0.00031232,5]
[401039526,1767891077248,-2631.52,0.00031232,5]
[401039527,1767891077257,-500.0,0.00031232,5]
[401039528,1767891077267,-500.0,0.00031232,5]
[401039529,1767891077276,-500.0,0.00031232,5]
[401039530,1767891077286,-600.7,0.00031232,5]
[401039531,1767891077295,-500.0,0.00031232,5]
[401039532,1767891077304,-500.0,0.00031232,5]
[401039533,1767891077314,-1344.71,0.000313,2]
[401039534,1767891077324,-6100.49946274,0.00031358,2]
[401039535,1767891077333,-235.0,0.0003137,46]
[401039536,1767891077343,-38687.66774739,0.00031371,2]
[401039537,1767891077353,-3016.0,0.00031395,7]
[401039538,1767891077363,-1344.71,0.000314,2]
[401039539,1767891077372,-1344.71,0.000314,2]
[401039540,1767891077381,-168.06,0.000314,2]
[401039541,1767891077391,-158.87,0.000314,2]
[401039542,1767891077401,-303.0,0.0003145,30]
[401039543,1767891077411,-405.0,0.0003145,30]
[401039544,1767891077421,-881.0,0.0003145,30]
[401039545,1767891077430,-1367.61133923,0.00031463,2]
[401039546,1767891077440,-376.9815269,0.00031479,30]
[401039547,1767891077449,-376.9815269,0.00031479,30]
[401039548,1767891077459,-376.1740719,0.00031479,30]
[401039549,1767891077468,-1344.71,0.000315,2]
[401039550,1767891077478,-152.54,0.000315,2]
[401039551,1767891077487,-151.0,0.00031506,31]
[401039552,1767891077604,-151.0,0.00031506,31]
[401039553,1767891077614,-152.051133,0.00031506,31]
[401039554,1767891077624,-1230.77,0.00031506,5]
[401039555,1767891077633,-500.0,0.00031506,5]
[401039556,1767891077642,-151.0,0.00031506,31]
[401039557,1767891077651,-151.0,0.00031506,31]
[401039558,1767891077661,-500.0,0.00031506,5]
[401039559,1767891077671,-151.0,0.00031506,31]
[401039560,1767891077680,-151.0,0.00031506,31]
[401039561,1767891077689,-151.0,0.00031506,31]
[401039562,1767891077699,-151.0,0.00031506,31]
[401039563,1767891077708,-563.95,0.00031506,5]
[401039564,1767891077718,-500.0,0.00031506,5]
[401039565,1767891077728,-500.0,0.00031506,5]
[401039566,1767891077739,-475.20903068,0.00031506,5]
[401039567,1767891077748,-517.63,0.00031506,5]
[401039568,1767891077758,-2443.5,0.00031506,5]
[401039569,1767891077767,-500.0,0.00031506,5]
[401039570,1767891077776,-617.23,0.00031506,5]
[401039571,1767891077787,-557.97,0.00031506,5]
[401039572,1767891077796,-1606.22,0.00031506,5]
[401039573,1767891077805,-500.0,0.00031506,5]
[401039574,1767891077815,-500.0,0.00031506,5]
[401039575,1767891077824,-1899.8,0.00031506,5]
[401039576,1767891077834,-500.0,0.00031506,2]
[401039577,1767891077843,-309.68,0.00031506,31]
[401039578,1767891077853,-692.57,0.00031506,5]
[401039579,1767891077863,-510.49,0.00031506,5]
[401039580,1767891077872,-500.65,0.00031506,5]
[401039581,1767891077881,-9194.49,0.00031506,3]
[401039582,1767891077890,-2049.07,0.00031506,8]
[401039583,1767891077901,-1384.74,0.00031506,5]
[401039584,1767891077911,-4093.0,0.00031506,5]
[401039585,1767891077921,-2464.53,0.00031506,5]
[401039586,1767891077932,-8762.91,0.00031506,5]
[401039587,1767891077945,-2631.52,0.00031506,5]
[401039588,1767891077955,-500.0,0.00031506,5]
[401039589,1767891077964,-500.0,0.00031506,5]
[401039590,1767891077975,-500.0,0.00031506,5]
[401039591,1767891077984,-600.7,0.00031506,5]
[401039592,1767891077993,-500.0,0.00031506,5]
[401039593,1767891078003,-916.0706166,0.00031533,27]
[401039594,1767891078014,-2000.0,0.0003155,7]
[401039595,1767891078024,-376.9815269,0.00031593,30]
[401039596,1767891078033,-1344.71,0.000316,2]
[401039597,1767891078044,-1344.71,0.000316,2]
[401039598,1767891078055,-158.87,0.000316,2]
[401039599,1767891078065,-1344.71,0.000317,2]
[401039600,1767891078074,-1344.71,0.000317,2]
[401039601,1767891078084,-35714.28,0.000317,7]
[401039602,1767891078093,-2200.0,0.00031753,7]
[401039603,1767891078102,-1230.77,0.0003178,5]
[401039604,1767891078113,-500.0,0.0003178,5]
[401039605,1767891078124,-500.0,0.0003178,5]
[401039606,1767891078133,-563.95,0.0003178,5]
[401039607,1767891078142,-296.04074694,0.0003178,5]
[401039608,1767891078152,-151.0,0.0003178,31]
[401039609,1767891078161,-517.63,0.0003178,5]
[401039610,1767891078172,-151.0,0.0003178,31]
[401039611,1767891078182,-153.670085,0.0003178,31]
[401039612,1767891078193,-2443.5,0.0003178,5]
[401039613,1767891078204,-500.0,0.0003178,5]
[401039614,1767891078213,-151.0,0.0003178,31]
[401039615,1767891078222,-617.23,0.0003178,5]
[401039616,1767891078232,-557.97,0.0003178,5]
[401039617,1767891078241,-1606.22,0.0003178,5]
[401039618,1767891078252,-500.0,0.0003178,5]
[401039619,1767891078262,-500.0,0.0003178,5]
[401039620,1767891078271,-1899.8,0.0003178,5]
[401039621,1767891078281,-500.0,0.0003178,2]
[401039622,1767891078292,-151.0,0.0003178,31]
[401039623,1767891078302,-151.0,0.0003178,31]
[401039624,1767891078312,-692.57,0.0003178,5]
[401039625,1767891078323,-510.49,0.0003178,5]
[401039626,1767891078333,-238.415405,0.0003178,31]
[401039627,1767891078343,-151.0,0.0003178,31]
[401039628,1767891078353,-153.151954,0.0003178,31]
[401039629,1767891078363,-168.916695,0.0003178,31]
[401039630,1767891078373,-151.0,0.0003178,31]
[401039631,1767891078382,-500.65,0.0003178,5]
[401039632,1767891078392,-151.0,0.0003178,2]
[401039633,1767891078402,-9194.49,0.0003178,3]
[401039634,1767891078413,-1384.74,0.0003178,5]
[401039635,1767891078422,-151.0,0.0003178,31]
[401039636,1767891078433,-4093.0,0.0003178,5]
[401039637,1767891078442,-2464.53,0.0003178,5]
[401039638,1767891078453,-151.0,0.0003178,31]
[401039639,1767891078462,-8762.91,0.0003178,5]
[401039640,1767891078472,-151.0,0.0003178,31]
[401039641,1767891078481,-151.0,0.0003178,31]
[401039642,1767891078491,-191.094302,0.0003178,31]
[401039643,1767891078500,-191.094302,0.0003178,31]
[401039644,1767891078510,-182.749737,0.0003178,31]
[401039645,1767891078519,-191.094302,0.0003178,31]
[401039646,1767891078529,-182.749737,0.0003178,31]
[401039647,1767891078539,-191.094302,0.0003178,31]
[401039648,1767891078549,-182.749737,0.0003178,31]
[401039649,1767891078558,-2631.52,0.0003178,5]
[401039650,1767891078567,-182.749737,0.0003178,31]
[401039651,1767891078577,-151.0,0.0003178,31]
[401039652,1767891078586,-151.0,0.0003178,31]
[401039653,1767891078596,-500.0,0.0003178,5]
[401039654,1767891078605,-151.0,0.0003178,31]
[401039655,1767891078615,-500.0,0.0003178,5]
[401039656,1767891078624,-500.0,0.0003178,5]
[401039657,1767891078634,-600.7,0.0003178,5]
[401039658,1767891078643,-633.22712355,0.0003178,5]
[401039659,1767891078653,-200.0,0.00031793,120]
[401039660,1767891078663,-1344.71,0.000318,2]
[401039661,1767891078673,-152.54,0.000318,2]
[401039662,1767891078681,-256.27,0.000318,2]
[401039663,1767891078691,-151.0,0.000318,31]
[401039664,1767891078701,-151.0,0.000318,31]
[401039665,1767891078710,-200.0,0.00031809,120]
[401039666,1767891078720,-600.6566519,0.00031836,30]
[401039667,1767891078729,-10000.0,0.0003187,7]
[401039668,1767891078739,-600.0,0.00031872,2]
[401039669,1767891078748,-200.0,0.00031894,120]
[401039670,1767891078758,-934.1621727,0.000319,120]
[401039671,1767891078767,-1344.71,0.000319,2]
[401039672,1767891078777,-1344.71,0.000319,2]
[401039673,1767891078789,-168.06,0.000319,2]
[401039674,1767891078800,-158.87,0.000319,2]
[401039675,1767891078809,-10171.5837719,0.00031919,2]
[401039676,1767891078819,-162.0,0.0003196,3]
[401039677,1767891078829,-150.3894175,0.00032,3]
[401039678,1767891078839,-1344.71,0.00032,2]
[401039679,1767891078849,-1344.71,0.00032,2]
[401039680,1767891078859,-666.13018299,0.00032,2]
[401039681,1767891078871,-161.70961374,0.00032,6]
[401039682,1767891078880,-300.0,0.00032,7]
[401039683,1767891078890,-600.0,0.00032,14]
[401039684,1767891078900,-1668.98,0.00032,14]
[401039685,1767891078909,-1021.94341535,0.00032,7]
[401039686,1767891078918,-2714.0,0.00032,38]
[401039687,1767891078928,-435.2,0.00032004,5]
[401039688,1767891078942,-1230.77,0.00032054,5]
[401039689,1767891078951,-151.0,0.00032054,31]
[401039690,1767891078961,-151.0,0.00032054,31]
[401039691,1767891078972,-151.0,0.00032054,31]
[401039692,1767891078981,-631.1155383,0.00032054,5]
[401039693,1767891078991,-303.930909,0.00032054,31]
[401039694,1767891079002,-303.930909,0.00032054,31]
[401039695,1767891079011,-303.930909,0.00032054,31]
[401039696,1767891079021,-303.930909,0.00032054,31]
[401039697,1767891079030,-500.0,0.00032054,5]
[401039698,1767891079041,-563.95,0.00032054,5]
[401039699,1767891079051,-517.63,0.00032054,5]
[401039700,1767891079060,-2443.5,0.00032054,5]
[401039701,1767891079070,-500.0,0.00032054,5]
[401039702,1767891079079,-617.23,0.00032054,5]
[401039703,1767891079089,-557.97,0.00032054,5]
[401039704,1767891079099,-1606.22,0.00032054,5]
[401039705,1767891079108,-345.5615976,0.00032054,5]
[401039706,1767891079117,-500.0,0.00032054,5]
[401039707,1767891079127,-1899.8,0.00032054,5]
[401039708,1767891079136,-500.0,0.00032054,2]
[401039709,1767891079146,-309.68,0.00032054,32]
[401039710,1767891079156,-692.57,0.00032054,5]
[401039711,1767891079167,-510.49,0.00032054,5]
[401039712,1767891079177,-500.65,0.00032054,5]
[401039713,1767891079186,-9194.49,0.00032054,3]
[401039714,1767891079197,-1384.74,0.00032054,5]
[401039715,1767891079207,-4093.0,0.00032054,5]
[401039716,1767891079216,-2464.53,0.00032054,5]
[401039717,1767891079226,-8762.91,0.00032054,5]
[401039718,1767891079235,-2631.52,0.00032054,5]
[401039719,1767891079244,-500.0,0.00032054,5]
[401039720,1767891079254,-500.0,0.00032054,5]
[401039721,1767891079264,-500.0,0.00032054,5]
[401039722,1767891079274,-600.7,0.00032054,5]
[401039723,1767891079283,-200.0,0.00032088,120]
[401039724,1767891079294,-200.0,0.00032099,120]
[401039725,1767891079304,-1344.71,0.000321,2]
[401039726,1767891079314,-158.87,0.000321,2]
[401039727,1767891079324,-152.54,0.000321,2]
[401039728,1767891079334,-1854.894412,0.000321,7]
[401039729,1767891079344,-1000.0,0.0003212,7]
[401039730,1767891079353,-153.0,0.00032137,30]
[401039731,1767891079363,-153.0,0.00032137,30]
[401039732,1767891079373,-153.0,0.00032137,30]
[401039733,1767891079383,-1000.0,0.0003214,7]
[401039734,1767891079392,-2000.0,0.00032154,7]
[401039735,1767891079402,-500.0,0.0003216,2]
[401039736,1767891079411,-1000.0,0.0003216,7]
[401039737,1767891079420,-1000.0,0.0003218,7]
[401039738,1767891079430,-1344.71,0.000322,2]
[401039739,1767891079439,-1344.71,0.000322,2]
[401039740,1767891079448,-1000.0,0.000322,7]
[401039741,1767891079459,-600.0,0.00032204,2]